fUST/lending_fUST_20240704
["ID","MTS","AMOUNT","RATE_DAILY","PERIOD"]
[331121200,1720090243044,-500.0,0.00014008,2]
[331121201,1720090243053,-500.0,0.00014008,2]
[331121202,1720090243063,-500.0,0.00014008,2]
[331121203,1720090243076,-500.0,0.00014008,2]
[331121204,1720090243086,-500.0,0.00014008,2]
[331121205,1720090243095,-500.0,0.00014008,2]
[331121206,1720090243105,-500.0,0.00014008,2]
[331121207,1720090243114,-500.0,0.00014008,2]
[331121208,1720090243123,-500.0,0.00014008,2]
[331121209,1720090243132,-395.55539709,0.00014008,2]
[331121210,1720090243141,-500.0,0.00014008,2]
[331121211,1720090243150,-500.0,0.00014008,2]
[331121212,1720090243159,-500.0,0.00014008,2]
[331121213,1720090243168,-510.87458043,0.00014008,2]
[331121214,1720090243177,-500.0,0.00014008,2]
[331121215,1720090243187,-512.15369897,0.00014008,2]
[331121216,1720090243196,-510.38431698,0.00014008,2]
[331121217,1720090243206,-500.0,0.00014008,2]
[331121218,1720090243215,-500.0,0.00014008,2]
[331121219,1720090243224,-590.94,0.00014008,2]
[331121220,1720090243236,-500.0,0.00014008,2]
[331121221,1720090243246,-500.0,0.00014008,2]
[331121222,1720090243257,-500.0,0.00014008,2]
[331121224,1720090243266,-500.0,0.00014009,2]
[331121226,1720090243276,-35119.6253187,0.0001401,2]
[331121228,1720090243285,-4890.59770615,0.00014012,2]
[331121229,1720090243302,-30229.02761255,0.00014012,2]
[331121230,1720090243311,-500.0,0.00014019,2]
[331121231,1720090243321,-741.46,0.00014019,2]
[331121232,1720090243331,-500.0,0.00014019,2]
[331121233,1720090243340,-511.60778027,0.00014019,2]
[331121234,1720090243349,-500.0,0.00014019,2]
[331121235,1720090243359,-9538.62,0.00014019,2]
[331121236,1720090243368,-611.99,0.00014019,2]
[331121237,1720090243378,-500.0,0.00014019,2]
[331121238,1720090243387,-500.0,0.00014019,2]
[331121239,1720090243396,-500.0,0.00014019,2]
[331121240,1720090243406,-500.0,0.00014019,2]
[331121241,1720090243415,-1065.53,0.00014019,2]
[331121242,1720090243425,-500.0,0.00014019,2]
[331121243,1720090243434,-500.0,0.00014019,2]
[331121244,1720090243443,-500.0,0.00014019,2]
[331121245,1720090243452,-1622.45,0.00014019,2]
[331121246,1720090243461,-1622.45,0.00014019,2]
[331121247,1720090243471,-500.0,0.00014019,2]
[331121248,1720090243480,-500.0,0.00014019,2]
[331121249,1720090243490,-500.0,0.00014019,2]
[331121250,1720090243499,-502.79153886,0.00014019,2]
[331121251,1720090243512,-500.0,0.00014019,2]
[331121252,1720090243521,-1065.28,0.00014019,2]
[331121253,1720090243530,-4840.28,0.00014019,2]
[331121254,1720090243539,-500.0,0.00014019,2]
[331121255,1720090243549,-500.0,0.00014019,2]
[331121256,1720090243558,-500.0,0.00014019,2]
[331121257,1720090243567,-500.0,0.0001402,2]
[331121258,1720090243576,-500.0,0.0001402,2]
[331121259,1720090243585,-500.0,0.0001402,2]
[331121260,1720090243595,-614.92457479,0.0001402,2]
[331121261,1720090243604,-500.0,0.0001402,2]
[331121262,1720090243613,-507.68983479,0.0001402,2]
[331121263,1720090243622,-500.0,0.0001402,2]
[331121264,1720090243631,-500.0,0.0001402,2]
[331121265,1720090243640,-500.0,0.0001402,2]
[331121266,1720090243649,-500.0,0.0001402,2]
[331121267,1720090243658,-502.45396476,0.0001402,2]
[331121268,1720090243667,-500.0,0.0001402,2]
[331121269,1720090243677,-500.0,0.0001402,2]
[331121270,1720090243686,-500.0,0.0001402,2]
[331121271,1720090243695,-500.0,0.0001402,2]
[331121272,1720090243704,-425.01530245,0.0001402,2]
[331121273,1720090243713,-516.32842148,0.0001402,2]
[331121274,1720090243722,-516.17711193,0.0001402,2]
[331121275,1720090243731,-757.88,0.0001402,2]
[331121276,1720090243741,-500.0,0.0001402,2]
[331121277,1720090243751,-591.13,0.0001402,2]
[331121278,1720090243765,-500.0,0.0001402,2]
[331121279,1720090243774,-500.0,0.0001402,2]
[331121280,1720090243783,-500.0,0.0001402,2]
[331121281,1720090243793,-500.0,0.0001402,2]
[331121282,1720090243802,-504.50360655,0.0001402,2]
[331121283,1720090243812,-500.0,0.0001402,2]
[331121284,1720090243821,-500.0,0.0001402,2]
[331121285,1720090243830,-500.0,0.0001402,2]
[331121286,1720090243840,-500.0,0.0001402,2]
[331121287,1720090243850,-500.0,0.0001402,2]
[331121288,1720090243859,-500.0,0.0001402,2]
[331121289,1720090243868,-500.0,0.0001402,2]
[331121290,1720090243878,-11886.39,0.0001402,2]
[331121291,1720090243887,-630.9,0.0001402,2]
[331121292,1720090243896,-500.0,0.0001402,2]
[331121293,1720090243905,-500.0,0.0001402,2]
[331121294,1720090243915,-500.0,0.0001402,2]
[331121295,1720090243924,-500.0,0.0001402,2]
[331121296,1720090243933,-500.0,0.0001402,2]
[331121297,1720090243943,-500.0,0.00014021,2]
[331121298,1720090243952,-500.0,0.00014021,2]
[331121299,1720090244060,-1622.45,0.00014021,2]
[331121300,1720090244070,-1622.45,0.00014021,2]
[331121301,1720090244081,-2506.86401147,0.00014021,2]
[331121302,1720090244093,-1010.1175,0.00014021,2]
[331121303,1720090244153,-2288.23848853,0.00014021,2]
[331121304,1720090244163,-526.05212795,0.00014021,2]
[331121305,1720090244172,-1154.46,0.00014021,2]
[331121306,1720090244182,-500.0,0.00014021,2]
[331121307,1720090244191,-500.0,0.00014022,2]
[331121308,1720090244200,-500.0,0.00014022,2]
[331121309,1720090244210,-3692.26453705,0.00014029,2]
[331121310,1720090244219,-3386.39703479,0.00014048,2]
[331121311,1720090244228,-37.59519782,0.00014048,2]
[331121312,1720090244240,-382.40480218,0.00014048,2]
[331121313,1720090244250,-198.61658782,0.00014062,2]
[331121314,1720090244263,-1423.83341218,0.00014062,2]
[331121315,1720090244271,-72.51934327,0.00014063,2]
[331121320,1720090244556,-500.0,0.00013992,2]
[331121321,1720090244566,-745.73065673,0.00014063,2]
[331121322,1720090244576,-172.34905761,0.00014063,2]
[331121323,1720090244589,-268.06834428,0.00014063,2]
[331121344,1720090335924,5000.0,0.000225,30]
[331121353,1720091023493,263.55,0.00025,120]
[331121533,1720091434739,-291.5580288,0.00013884,2]
[331121603,1720091438711,-1185.34778602,0.00013884,2]
[331121605,1720091438721,-1476.90581482,0.0001395,2]
[331121607,1720091438731,-300.0,0.00013974,2]
[331121609,1720091438741,-26546.3539314,0.00013975,2]
[331121611,1720091438750,-500.0,0.00013975,2]
[331121613,1720091438760,-26546.3539314,0.00013976,2]
[331121615,1720091438773,-500.0,0.00013981,2]
[331121617,1720091438783,-672.77,0.00013981,2]
[331121619,1720091438793,-2856.1,0.00013981,2]
[331121621,1720091438802,-500.0,0.00013981,2]
[331121623,1720091438812,-15074.12,0.00013981,2]
[331121625,1720091438822,-1910.31,0.00013981,2]
[331121627,1720091438832,-53092.7078627,0.00013982,2]
[331121629,1720091438841,-2916.56,0.00013984,2]
[331121631,1720091438851,-948.13,0.00013984,2]
[331121633,1720091438861,-502.9155561,0.00013984,2]
[331121635,1720091438871,-500.0,0.00013984,2]
[331121637,1720091438880,-500.0,0.00013984,2]
[331121639,1720091438891,-2150.59,0.00013984,2]
[331121641,1720091438900,-2992.66,0.00013984,2]
[331121643,1720091438910,-1549.36,0.00013984,2]
[331121645,1720091438920,-500.0,0.00013984,2]
[331121647,1720091438930,-500.0,0.00013984,2]
[331121649,1720091438940,-1274.59,0.00013984,2]
[331121651,1720091438950,-500.0,0.00013984,2]
[331121653,1720091438960,-5211.25,0.00013984,2]
[331121655,1720091438969,-500.0,0.00013984,2]
[331121657,1720091438979,-500.0,0.00013984,2]
[331121659,1720091438988,-12459.42409763,0.00013985,2]
[331121661,1720091438998,-500.0,0.00013985,2]
[331121663,1720091439008,-500.0,0.00013985,2]
[331121665,1720091439018,-500.0,0.00013985,2]
[331121667,1720091439028,-1231.46,0.00013985,2]
[331121669,1720091439038,-500.0,0.00013985,2]
[331121671,1720091439049,-504.19345201,0.00013985,2]
[331121673,1720091439059,-500.0,0.00013985,2]
[331121675,1720091439070,-500.0,0.00013985,2]
[331121677,1720091439080,-500.0,0.00013985,2]
[331121679,1720091439090,-360.09546543,0.00013985,2]
[331121681,1720091439100,-500.0,0.00013985,2]
[331121683,1720091439110,-568.75938068,0.00013985,2]
[331121685,1720091439120,-500.0,0.00013985,2]
[331121687,1720091439130,-259.85226311,0.00013985,2]
[331121689,1720091439140,-500.0,0.00013985,2]
[331121691,1720091439151,-235.50231353,0.00013985,2]
[331121693,1720091439161,-500.0,0.00013985,2]
[331121695,1720091439170,-500.0,0.00013985,2]
[331121697,1720091439181,-500.0,0.00013985,2]
[331121699,1720091439191,-500.0,0.00013985,2]
[331121701,1720091439200,-500.0,0.00013985,2]
[331121703,1720091439209,-500.0,0.00013985,2]
[331121705,1720091439219,-1704.16,0.00013985,2]
[331121707,1720091439229,-500.0,0.00013985,2]
[331121709,1720091439239,-500.0,0.00013985,2]
[331121711,1720091439248,-500.0,0.00013985,2]
[331121713,1720091439258,-500.0,0.00013985,2]
[331121715,1720091439268,-500.0,0.00013985,2]
[331121717,1720091439278,-500.0,0.00013985,2]
[331121719,1720091439288,-500.0,0.00013985,2]
[331121721,1720091439299,-500.0,0.00013985,2]
[331121723,1720091439309,-500.0,0.00013985,2]
[331121725,1720091439320,-572.477477,0.00013985,2]
[331121727,1720091439330,-500.0,0.00013985,2]
[331121729,1720091439340,-500.0,0.00013985,2]
[331121731,1720091439350,-500.0,0.00013985,2]
[331121733,1720091439360,-757.21,0.00013985,2]
[331121734,1720091439370,-500.0,0.00013985,2]
[331121736,1720091439381,-1068.99,0.00013985,2]
[331121739,1720091439394,-500.0,0.00013985,2]
[331121740,1720091439404,-1429.16,0.00013985,2]
[331121743,1720091439414,-500.0,0.00013985,2]
[331121744,1720091439426,-503.74093966,0.00013985,2]
[331121746,1720091439436,-504.90281223,0.00013985,2]
[331121749,1720091439446,-500.0,0.00013985,2]
[331121750,1720091439459,-500.0,0.00013985,2]
[331121753,1720091439470,-500.0,0.00013985,2]
[331121754,1720091439480,-566.71895261,0.00013985,2]
[331121756,1720091439491,-500.0,0.00013985,2]
[331121758,1720091439504,-515.19749725,0.00013985,2]
[331121760,1720091439514,-500.0,0.00013985,2]
[331121762,1720091439524,-500.0,0.00013985,2]
[331121764,1720091439533,-500.0,0.00013985,2]
[331121766,1720091439543,-500.0,0.00013985,2]
[331121768,1720091439552,-500.0,0.00013985,2]
[331121770,1720091439562,-500.0,0.00013985,2]
[331121772,1720091439572,-500.0,0.00013985,2]
[331121774,1720091439581,-993.48,0.00013985,2]
[331121775,1720091439591,-500.0,0.00013985,2]
[331121776,1720091439601,-500.0,0.00013985,2]
[331121777,1720091439611,-504.24131858,0.00013985,2]
[331121778,1720091439621,-500.0,0.00013985,2]
[331121779,1720091439631,-577.53670353,0.00013985,2]
[331121780,1720091439642,-500.0,0.00013985,2]
[331121781,1720091439652,-508.19662709,0.00013985,2]
[331121782,1720091439663,-500.0,0.00013985,2]
[331121783,1720091439673,-500.0,0.00013985,2]
[331121784,1720091439684,-500.0,0.00013985,2]
[331121785,1720091439695,-829.05,0.00013985,2]
[331121786,1720091439706,-500.0,0.00013985,2]
[331121787,1720091439716,-500.0,0.00013985,2]
[331121788,1720091439726,-850.65,0.00013985,2]
[331121789,1720091439735,-500.0,0.00013985,2]
[331121790,1720091439745,-263.11589167,0.00013985,2]
[331121791,1720091439756,-500.0,0.00013985,2]
[331121792,1720091439766,-10244.09,0.00013985,2]
[331121793,1720091439776,-500.0,0.00013985,2]
[331121794,1720091439787,-714.94,0.00013985,2]
[331121795,1720091439797,-500.0,0.00013985,2]
[331121796,1720091439808,-500.0,0.00013985,2]
[331121797,1720091439818,-500.0,0.00013985,2]
[331121799,1720091439829,-500.0,0.00013985,2]
[331121801,1720091439839,-500.0,0.00013985,2]
[331121803,1720091439849,-500.0,0.00013985,2]
[331121804,1720091439859,-528.15327025,0.00013985,2]
[331121806,1720091439869,-500.0,0.00013985,2]
[331121807,1720091439880,-500.0,0.00013985,2]
[331121808,1720091439889,-542.94,0.00013985,2]
[331121809,1720091439899,-500.0,0.00013985,2]
[331121810,1720091439909,-500.0,0.00013985,2]
[331121811,1720091439920,-500.0,0.00013985,2]
[331121812,1720091439930,-642.19539709,0.00013985,2]
[331121813,1720091439940,-393.30507928,0.00013985,2]
[331121814,1720091439952,-500.0,0.00013985,2]
[331121815,1720091439965,-500.0,0.00013985,2]
[331121816,1720091440105,-500.0,0.00013985,2]
[331121817,1720091440116,-500.0,0.00013985,2]
[331121818,1720091440127,-500.0,0.00013985,2]
[331121819,1720091440138,-500.0,0.00013985,2]
[331121820,1720091440147,-500.0,0.00013985,2]
[331121821,1720091440158,-500.0,0.00013985,2]
[331121822,1720091440168,-500.0,0.00013985,2]
[331121823,1720091440178,-506.07017931,0.00013985,2]
[331121824,1720091440188,-500.0,0.00013985,2]
[331121825,1720091440199,-500.0,0.00013985,2]
[331121826,1720091440209,-505.93559937,0.00013985,2]
[331121827,1720091440220,-1273.86,0.00013985,2]
[331121828,1720091440231,-500.0,0.00013985,2]
[331121829,1720091440241,-500.0,0.00013985,2]
[331121830,1720091440251,-793.17,0.00013985,2]
[331121831,1720091440262,-500.0,0.00013985,2]
[331121832,1720091440272,-1174.95,0.00013985,2]
[331121833,1720091440282,-567.98322241,0.00013985,2]
[331121834,1720091440292,-504.42497426,0.00013985,2]
[331121835,1720091440303,-573.15067934,0.00013985,2]
[331121836,1720091440313,-500.0,0.00013985,2]
[331121837,1720091440323,-401.47481016,0.00013985,2]
[331121838,1720091440333,-5237.68,0.00013985,2]
[331121839,1720091440343,-500.0,0.00013985,2]
[331121840,1720091440353,-500.0,0.00013985,2]
[331121841,1720091440363,-500.0,0.00013985,2]
[331121842,1720091440374,-267.7380727,0.00013985,2]
[331121843,1720091440385,-501.55052969,0.00013985,2]
[331121844,1720091440395,-500.0,0.00013985,2]
[331121845,1720091440406,-500.0,0.00013985,2]
[331121846,1720091440418,-500.0,0.00013985,2]
[331121847,1720091440428,-621.32,0.00013985,2]
[331121848,1720091440438,-500.0,0.00013985,2]
[331121849,1720091440450,-501.11947081,0.00013985,2]
[331121850,1720091440466,-500.0,0.00013985,2]
[331121851,1720091440475,-500.0,0.00013985,2]
[331121852,1720091440486,-500.0,0.00013985,2]
[331121853,1720091440497,-500.0,0.00013985,2]
[331121854,1720091440507,-969.08,0.00013985,2]
[331121855,1720091440518,-500.0,0.00013985,2]
[331121856,1720091440528,-500.0,0.00013985,2]
[331121858,1720091440538,-500.0,0.00013985,2]
[331121860,1720091440548,-500.0,0.00013985,2]
[331121862,1720091440558,-500.0,0.00013985,2]
[331121865,1720091440568,-500.0,0.00013985,2]
[331121868,1720091440578,-607.21349628,0.00013985,2]
[331121870,1720091440588,-500.0,0.00013985,2]
[331121872,1720091440599,-500.0,0.00013985,2]
[331121874,1720091440609,-500.0,0.00013985,2]
[331121876,1720091440619,-500.0,0.00013985,2]
[331121878,1720091440629,-500.0,0.00013985,2]
[331121880,1720091440641,-500.0,0.00013985,2]
[331121882,1720091440653,-500.0,0.00013985,2]
[331121884,1720091440664,-1191.12,0.00013985,2]
[331121886,1720091440674,-500.0,0.00013985,2]
[331121888,1720091440683,-180.51399735,0.00013985,2]
[331121890,1720091440693,-500.0,0.00013985,2]
[331121892,1720091440706,-500.0,0.00013985,2]
[331121894,1720091440716,-558.03530332,0.00013985,2]
[331121896,1720091440726,-1051.26,0.00013985,2]
[331121898,1720091440736,-500.0,0.00013985,2]
[331121900,1720091440747,-500.0,0.00013985,2]
[331121902,1720091440757,-500.0,0.00013985,2]
[331121904,1720091440767,-500.0,0.00013985,2]
[331121906,1720091440776,-198.6592862,0.00013985,2]
[331121908,1720091440786,-500.0,0.00013985,2]
[331121910,1720091440796,-436.81588032,0.00013985,2]
[331121912,1720091440805,-500.0,0.00013985,2]
[331121914,1720091440815,-502.28656995,0.00013985,2]
[331121916,1720091440824,-500.0,0.00013985,2]
[331121918,1720091440833,-500.0,0.00013985,2]
[331121920,1720091440842,-500.0,0.00013985,2]
[331121922,1720091440852,-1744.7,0.00013985,2]
[331121924,1720091440862,-500.0,0.00013985,2]
[331121926,1720091440871,-500.0,0.00013985,2]
[331121928,1720091440881,-500.0,0.00013985,2]
[331121930,1720091440890,-500.0,0.00013986,2]
[331121931,1720091440899,-500.0,0.00013986,2]
[331121933,1720091440909,-500.0,0.00013986,2]
[331121935,1720091440919,-500.0,0.00013986,2]
[331121937,1720091440928,-500.0,0.00013986,2]
[331121939,1720091440938,-500.0,0.00013986,2]
[331121941,1720091440947,-188.87247166,0.00013986,2]
[331121943,1720091440959,-500.0,0.00013986,2]
[331121946,1720091440968,-500.0,0.00013986,2]
[331121948,1720091440978,-500.0,0.00013986,2]
[331121950,1720091440987,-500.0,0.00013986,2]
[331121951,1720091440997,-500.0,0.00013986,2]
[331121953,1720091441007,-500.0,0.00013986,2]
[331121955,1720091441016,-500.0,0.00013986,2]
[331121957,1720091441026,-500.0,0.00013986,2]
[331121959,1720091441035,-500.0,0.00013986,2]
[331121962,1720091441045,-500.0,0.00013986,2]
[331121963,1720091441054,-500.0,0.00013986,2]
[331121966,1720091441064,-500.0,0.00013986,2]
[331121968,1720091441073,-500.0,0.00013986,2]
[331121969,1720091441082,-500.0,0.00013986,2]
[331121971,1720091441092,-500.0,0.00013986,2]
[331121973,1720091441101,-500.0,0.00013986,2]
[331121975,1720091441110,-500.0,0.00013986,2]
[331121977,1720091441119,-500.0,0.00013986,2]
[331121979,1720091441128,-500.0,0.00013986,2]
[331121981,1720091441137,-500.0,0.00013986,2]
[331121984,1720091441155,-500.0,0.00013986,2]
[331121987,1720091441168,-361.23,0.00013986,2]
[331121989,1720091441178,-737.33,0.00013986,2]
[331121991,1720091441187,-500.0,0.00013986,2]
[331121993,1720091441197,-500.0,0.00013986,2]
[331121995,1720091441209,-500.0,0.00013986,2]
[331121997,1720091441219,-835.25,0.00013986,2]
[331121999,1720091441229,-500.0,0.00013986,2]
[331122001,1720091441238,-438.94509361,0.00013986,2]
[331122003,1720091441248,-500.0,0.00013986,2]
[331122005,1720091441258,-1744.7,0.0001399,2]
[331122007,1720091441267,-500.0,0.00013991,2]
[331122010,1720091441277,-500.0,0.00013991,2]
[331122012,1720091441287,-5153.24,0.00013991,2]
[331122014,1720091441296,-1744.7,0.00013991,2]
[331122016,1720091441307,-500.0,0.00013992,2]
[331122018,1720091441317,-508.23193348,0.00013992,2]
[331122020,1720091441326,-508.13929116,0.00013992,2]
[331122022,1720091441335,-500.0,0.00013992,2]
[331122023,1720091441345,-500.0,0.00013992,2]
[331122026,1720091441356,-500.0,0.00013992,2]
[331122028,1720091441366,-500.0,0.00013992,2]
[331122030,1720091441377,-338.843958,0.00013992,2]
[331122032,1720091441390,-500.0,0.00013992,2]
[331122033,1720091441401,-500.0,0.00013992,2]
[331122035,1720091441412,-500.0,0.00013992,2]
[331122037,1720091441423,-500.0,0.00013992,2]
[331122039,1720091441433,-500.0,0.00013992,2]
[331122041,1720091441442,-500.0,0.00013992,2]
[331122043,1720091441453,-500.0,0.00013992,2]
[331122045,1720091441466,-500.0,0.00013992,2]
[331122047,1720091441476,-500.0,0.00013992,2]
[331122049,1720091441485,-733.48,0.00013992,2]
[331122051,1720091441495,-500.0,0.00013992,2]
[331122053,1720091441505,-428.15097289,0.00013992,2]
[331122055,1720091441515,-501.12731378,0.00013992,2]
[331122056,1720091441524,-500.0,0.00013992,2]
[331122058,1720091441534,-500.0,0.00013992,2]
[331122060,1720091441543,-500.0,0.00013992,2]
[331122062,1720091441553,-509.80111708,0.00013992,2]
[331122063,1720091441562,-500.0,0.00013992,2]
[331122064,1720091441572,-500.0,0.00013992,2]
[331122066,1720091441581,-500.0,0.00013992,2]
[331122068,1720091441590,-500.0,0.00013992,2]
[331122069,1720091441600,-317.44575777,0.00013992,2]
[331122071,1720091441609,-500.0,0.00013992,2]
[331122073,1720091441619,-500.0,0.00013992,2]
[331122075,1720091441628,-500.0,0.00013992,2]
[331122077,1720091441638,-500.0,0.00013992,2]
[331122079,1720091441647,-234.97903138,0.00013992,2]
[331122080,1720091441658,-500.0,0.00013992,2]
[331122082,1720091441668,-500.0,0.00013992,2]
[331122084,1720091441677,-500.0,0.00013992,2]
[331122086,1720091441687,-338.67036204,0.00013992,2]
[331122088,1720091441697,-500.0,0.00013992,2]
[331122090,1720091441708,-500.0,0.00013992,2]
[331122092,1720091441717,-500.0,0.00013992,2]
[331122094,1720091441727,-500.0,0.00013992,2]
[331122096,1720091441737,-500.0,0.00013992,2]
[331122098,1720091441746,-500.0,0.00013992,2]
[331122100,1720091441756,-500.0,0.00013992,2]
[331122102,1720091441765,-500.0,0.00013992,2]
[331122104,1720091441775,-500.0,0.00013992,2]
[331122105,1720091441785,-500.0,0.00013992,2]
[331122107,1720091441794,-501.61006172,0.00013992,2]
[331122109,1720091441804,-500.0,0.00013992,2]
[331122110,1720091441813,-500.0,0.00013992,2]
[331122111,1720091441823,-500.0,0.00013992,2]
[331122112,1720091441832,-500.0,0.00013992,2]
[331122113,1720091441842,-500.0,0.00013992,2]
[331122115,1720091441852,-611.24359114,0.00013992,2]
[331122116,1720091441861,-500.0,0.00013992,2]
[331122117,1720091441871,-500.0,0.00013992,2]
[331122118,1720091441880,-500.0,0.00013992,2]
[331122119,1720091441889,-500.0,0.00013992,2]
[331122120,1720091441898,-500.0,0.00013992,2]
[331122121,1720091441907,-500.0,0.00013992,2]
[331122122,1720091441917,-414.89177427,0.00013992,2]
[331122123,1720091441926,-500.0,0.00013992,2]
[331122124,1720091441935,-500.0,0.00013992,2]
[331122125,1720091441944,-500.0,0.00013992,2]
[331122126,1720091441954,-500.0,0.00013992,2]
[331122127,1720091441963,-500.0,0.00013992,2]
[331122128,1720091441972,-500.0,0.00013992,2]
[331122129,1720091441981,-500.0,0.00013992,2]
[331122130,1720091441990,-629.75377508,0.00013992,2]
[331122131,1720091441999,-500.0,0.00013992,2]
[331122132,1720091442012,-500.0,0.00013992,2]
[331122133,1720091442022,-500.0,0.00013992,2]
[331122134,1720091442031,-500.0,0.00013992,2]
[331122135,1720091442040,-501.32521255,0.00013992,2]
[331122136,1720091442050,-504.5964732,0.00013992,2]
[331122137,1720091442059,-500.0,0.00013992,2]
[331122138,1720091442069,-546.39261507,0.00013992,2]
[331122139,1720091442078,-500.0,0.00013992,2]
[331122140,1720091442088,-500.0,0.00013992,2]
[331122141,1720091442097,-500.0,0.00013992,2]
[331122142,1720091442106,-500.0,0.00013992,2]
[331122143,1720091442115,-500.0,0.00013992,2]
[331122144,1720091442126,-500.0,0.00013992,2]
[331122145,1720091442135,-500.0,0.00013992,2]
[331122146,1720091442145,-500.0,0.00013992,2]
[331122147,1720091442155,-500.0,0.00013992,2]
[331122148,1720091442166,-500.0,0.00013992,2]
[331122149,1720091442175,-501.81491948,0.00013992,2]
[331122150,1720091442184,-502.89715957,0.00013992,2]
[331122151,1720091442193,-500.0,0.00013992,2]
[331122152,1720091442204,-502.92928497,0.00013992,2]
[331122153,1720091442213,-500.0,0.00013992,2]
[331122154,1720091442223,-500.0,0.00013992,2]
[331122155,1720091442232,-500.0,0.00013992,2]
[331122156,1720091442242,-504.45593645,0.00013992,2]
[331122157,1720091442252,-500.0,0.00013992,2]
[331122158,1720091442263,-500.0,0.00013992,2]
[331122159,1720091442274,-500.0,0.00013992,2]
[331122160,1720091442283,-500.0,0.00013992,2]
[331122161,1720091442293,-500.0,0.00013992,2]
[331122162,1720091442302,-317.23297607,0.00013992,2]
[331122163,1720091442312,-500.0,0.00013992,2]
[331122164,1720091442321,-503.56029985,0.00013992,2]
[331122165,1720091442331,-509.33519276,0.00013992,2]
[331122166,1720091442340,-500.0,0.00013992,2]
[331122167,1720091442349,-500.0,0.00013992,2]
[331122168,1720091442358,-314.16906674,0.00013992,2]
[331122169,1720091442368,-500.9383879,0.00013992,2]
[331122170,1720091442382,-500.0,0.00013992,2]
[331122171,1720091442392,-500.0,0.00013992,2]
[331122172,1720091442401,-500.0,0.00013992,2]
[331122173,1720091442410,-508.25591897,0.00013992,2]
[331122174,1720091442422,-501.08921587,0.00013992,2]
[331122175,1720091442431,-500.53920741,0.00013992,2]
[331122176,1720091442440,-502.49986424,0.00013992,2]
[331122177,1720091442451,-500.0,0.00013992,2]
[331122178,1720091442465,-500.0,0.00013992,2]
[331122179,1720091442476,-500.0,0.00013992,2]
[331122180,1720091442485,-441.91774279,0.00013992,2]
[331122181,1720091442495,-500.0,0.00013992,2]
[331122182,1720091442504,-500.0,0.00013992,2]
[331122183,1720091442516,-500.0,0.00013992,2]
[331122184,1720091442525,-500.0,0.00013992,2]
[331122185,1720091442534,-500.0,0.00013992,2]
[331122186,1720091442545,-500.0,0.00013992,2]
[331122187,1720091442554,-500.0,0.00013992,2]
[331122188,1720091442564,-175.97925096,0.00013992,2]
[331122189,1720091442573,-500.0,0.00013992,2]
[331122190,1720091442582,-607.98,0.00013992,2]
[331122191,1720091442591,-500.0,0.00013992,2]
[331122192,1720091442600,-567.67207232,0.00013992,2]
[331122193,1720091442610,-500.0,0.00013992,2]
[331122194,1720091442619,-500.0,0.00013992,2]
[331122195,1720091442629,-500.0,0.00013992,2]
[331122196,1720091442639,-500.0,0.00013992,2]
[331122197,1720091442648,-500.0,0.00013992,2]